[Event "*** Titled Tuesday Blitz"]
[Site "Chess.com"]
[Date "2020.05.26"]
[Round "9"]
[White "HouseOfDurin"]
[Black "PetrolulSah"]
[Result "0-1"]
[WhiteElo "2046"]
[BlackElo "2203"]
[TimeControl "180+1"]
[EndTime "11:51:02 PDT"]
[Termination "PetrolulSah won on time"]

1. d4 {[%clk 0:03:00.9]} 1... Nf6 {[%clk 0:02:59.1]} 2. Bg5 {[%clk 0:03:01.3]}
2... d5 {[%clk 0:02:58.3]} 3. Bxf6 {[%clk 0:03:00.6]} 3... exf6 {[%clk
0:02:59.2]} 4. e3 {[%clk 0:03:00.8]} 4... f5 {[%clk 0:02:59]} 5. c4 {[%clk
0:02:54.5]} 5... Be6 {[%clk 0:02:48.1]} 6. cxd5 {[%clk 0:02:53.2]} 6... Bxd5
{[%clk 0:02:49]} 7. Nc3 {[%clk 0:02:53.3]} 7... Be7 {[%clk 0:02:42.6]} 8. Nxd5
{[%clk 0:02:45.1]} 8... Qxd5 {[%clk 0:02:41.9]} 9. Ne2 {[%clk 0:02:44.3]} 9...
O-O {[%clk 0:02:31.8]} 10. Nc3 {[%clk 0:02:44]} 10... Qa5 {[%clk 0:02:31.5]} 11.
a3 {[%clk 0:02:39]} 11... f4 {[%clk 0:02:30]} 12. exf4 {[%clk 0:02:28.4]} 12...
Bf6 {[%clk 0:02:25.6]} 13. Be2 {[%clk 0:01:45.7]} 13... Nc6 {[%clk 0:02:20.6]}
14. b4 {[%clk 0:01:13.1]} 14... Qf5 {[%clk 0:02:17.7]} 15. O-O {[%clk
0:00:31.3]} 15... Nxd4 {[%clk 0:02:09.2]} 16. Rc1 {[%clk 0:00:28.1]} 16... c6
{[%clk 0:01:59.5]} 17. g3 {[%clk 0:00:25.4]} 17... Rad8 {[%clk 0:01:56]} 18. Qa4
{[%clk 0:00:14.7]} 18... Rfe8 {[%clk 0:01:52.3]} 19. Bc4 {[%clk 0:00:11.1]}
19... b5 {[%clk 0:01:47.4]} 20. Bxb5 {[%clk 0:00:07.6]} 20... cxb5 {[%clk
0:01:45.9]} 21. Qxa7 {[%clk 0:00:07.4]} 21... Nf3+ {[%clk 0:01:36]} 22. Kg2
{[%clk 0:00:07]} 22... Nh4+ {[%clk 0:01:27.5]} 23. gxh4 {[%clk 0:00:05.5]} 23...
Qg4+ {[%clk 0:01:27.7]} 24. Kh1 {[%clk 0:00:05.4]} 24... Qf3+ {[%clk 0:01:27.2]}
25. Kg1 {[%clk 0:00:05.5]} 25... Bxc3 {[%clk 0:01:24.7]} 26. Qc7 {[%clk
0:00:03.6]} 26... Bd2 {[%clk 0:00:56.7]} 0-1

[Event "*** Titled Tuesday Blitz"]
[Site "Chess.com"]
[Date "2020.05.26"]
[Round "9"]
[White "kushagramohan"]
[Black "pastouche06"]
[Result "1-0"]
[WhiteElo "2664"]
[BlackElo "2479"]
[TimeControl "180+1"]
[EndTime "11:51:04 PDT"]
[Termination "kushagramohan won by resignation"]

1. e4 {[%clk 0:03:00.9]} 1... c6 {[%clk 0:02:58.3]} 2. d4 {[%clk 0:03:00.7]}
2... d5 {[%clk 0:02:58.1]} 3. Nd2 {[%clk 0:03:01.3]} 3... dxe4 {[%clk
0:02:57.9]} 4. Nxe4 {[%clk 0:03:02.2]} 4... Bf5 {[%clk 0:02:56.9]} 5. Ng3 {[%clk
0:03:02.1]} 5... Bg6 {[%clk 0:02:56.9]} 6. h4 {[%clk 0:03:02.4]} 6... h6 {[%clk
0:02:56.5]} 7. Nf3 {[%clk 0:03:02.5]} 7... Nd7 {[%clk 0:02:56.2]} 8. h5 {[%clk
0:03:03.1]} 8... Bh7 {[%clk 0:02:56.4]} 9. Bd3 {[%clk 0:03:03.6]} 9... Bxd3
{[%clk 0:02:55.6]} 10. Qxd3 {[%clk 0:03:04.5]} 10... e6 {[%clk 0:02:56.1]} 11.
Bf4 {[%clk 0:03:04.9]} 11... Qa5+ {[%clk 0:02:54.3]} 12. Bd2 {[%clk 0:03:04.5]}
12... Bb4 {[%clk 0:02:54.2]} 13. c3 {[%clk 0:03:04.9]} 13... Be7 {[%clk
0:02:54]} 14. c4 {[%clk 0:03:05.3]} 14... Qc7 {[%clk 0:02:54.2]} 15. d5 {[%clk
0:03:03.2]} 15... cxd5 {[%clk 0:02:51.1]} 16. cxd5 {[%clk 0:03:03.1]} 16... Qd6
{[%clk 0:02:51.4]} 17. Qb3 {[%clk 0:03:01.8]} 17... Ngf6 {[%clk 0:02:41.2]} 18.
dxe6 {[%clk 0:03:01]} 18... Qxe6+ {[%clk 0:02:40.6]} 19. Qxe6 {[%clk 0:03:00.6]}
19... fxe6 {[%clk 0:02:41.5]} 20. Rc1 {[%clk 0:02:56.8]} 20... Nd5 {[%clk
0:02:22.7]} 21. Ne4 {[%clk 0:02:48.5]} 21... Kf7 {[%clk 0:02:16]} 22. g4 {[%clk
0:02:47.9]} 22... N7f6 {[%clk 0:01:42.8]} 23. Ne5+ {[%clk 0:02:44.7]} 23... Kg8
{[%clk 0:01:38.2]} 24. Nxf6+ {[%clk 0:02:36.9]} 24... gxf6 {[%clk 0:01:35.1]}
25. Ng6 {[%clk 0:02:31.9]} 25... Rh7 {[%clk 0:01:28.9]} 26. f4 {[%clk 0:02:07]}
26... Bd6 {[%clk 0:01:21.5]} 27. Kf2 {[%clk 0:02:02.8]} 27... Rc7 {[%clk
0:01:15.8]} 28. Rxc7 {[%clk 0:01:59.6]} 28... Bxc7 {[%clk 0:01:16.7]} 29. Re1
{[%clk 0:01:56.3]} 29... Kf7 {[%clk 0:01:12.4]} 30. f5 {[%clk 0:01:51.5]} 30...
exf5 {[%clk 0:01:07.4]} 31. gxf5 {[%clk 0:01:51.7]} 31... Bb6+ {[%clk
0:01:07.9]} 32. Kf3 {[%clk 0:01:51.5]} 32... Rc8 {[%clk 0:00:55.2]} 33. Bxh6
{[%clk 0:01:50.7]} 33... Rc2 {[%clk 0:00:55.3]} 34. Re2 {[%clk 0:01:48.5]} 34...
Rc4 {[%clk 0:00:52.8]} 35. Bd2 {[%clk 0:01:21.2]} 35... Rd4 {[%clk 0:00:45.8]}
36. h6 {[%clk 0:01:17.5]} 36... Rd3+ {[%clk 0:00:46.1]} 37. Kg2 {[%clk
0:01:00.8]} 1-0

[Event "*** Titled Tuesday Blitz"]
[Site "Chess.com"]
[Date "2020.05.26"]
[Round "9"]
[White "Slovak_fighter2000"]
[Black "ljuks68"]
[Result "1-0"]
[WhiteElo "2483"]
[BlackElo "2337"]
[TimeControl "180+1"]
[EndTime "11:51:05 PDT"]
[Termination "Slovak_fighter2000 won on time"]

1. e4 {[%clk 0:03:00.9]} 1... e6 {[%clk 0:03:00]} 2. Nf3 {[%clk 0:03:00.2]} 2...
d5 {[%clk 0:03:00.2]} 3. e5 {[%clk 0:03:00.6]} 3... c5 {[%clk 0:02:59.6]} 4. b4
{[%clk 0:03:01.1]} 4... Nc6 {[%clk 0:02:59.6]} 5. bxc5 {[%clk 0:02:59.7]} 5...
d4 {[%clk 0:02:59.8]} 6. Bd3 {[%clk 0:02:56.6]} 6... Bxc5 {[%clk 0:02:59.4]} 7.
Ba3 {[%clk 0:02:55.2]} 7... Qa5 {[%clk 0:02:43.4]} 8. Bxc5 {[%clk 0:02:46.1]}
8... Qxc5 {[%clk 0:02:43.2]} 9. Qe2 {[%clk 0:02:44.2]} 9... Nge7 {[%clk
0:02:40.2]} 10. O-O {[%clk 0:02:24.9]} 10... Ng6 {[%clk 0:02:39.5]} 11. Re1
{[%clk 0:02:23.9]} 11... b6 {[%clk 0:02:29.7]} 12. a4 {[%clk 0:02:21.4]} 12...
Bb7 {[%clk 0:02:28.4]} 13. Na3 {[%clk 0:02:19.9]} 13... Nf4 {[%clk 0:02:18.8]}
14. Qf1 {[%clk 0:02:13.3]} 14... O-O {[%clk 0:01:36.1]} 15. Be4 {[%clk
0:02:06.4]} 15... f5 {[%clk 0:01:33.8]} 16. exf6 {[%clk 0:02:05.2]} 16... gxf6
{[%clk 0:01:33.6]} 17. g3 {[%clk 0:01:43.9]} 17... f5 {[%clk 0:01:27.2]} 18. Bd3
{[%clk 0:01:07.9]} 18... Nb4 {[%clk 0:01:24.1]} 19. Ne5 {[%clk 0:00:52.7]} 19...
Kh8 {[%clk 0:00:34.3]} 20. Bc4 {[%clk 0:00:46.2]} 20... Nbd5 {[%clk 0:00:02.5]}
21. Nd7 {[%clk 0:00:38]} 1-0

[Event "*** Titled Tuesday Blitz"]
[Site "Chess.com"]
[Date "2020.05.26"]
[Round "9"]
[White "mjray79"]
[Black "Savva09022009"]
[Result "1-0"]
[WhiteElo "2304"]
[BlackElo "2391"]
[TimeControl "180+1"]
[EndTime "11:51:05 PDT"]
[Termination "mjray79 won by checkmate"]

1. d4 {[%clk 0:03:00.9]} 1... Nf6 {[%clk 0:02:59.9]} 2. c4 {[%clk 0:03:01.3]}
2... e6 {[%clk 0:03:00.5]} 3. g3 {[%clk 0:03:00]} 3... d5 {[%clk 0:03:00.2]} 4.
Bg2 {[%clk 0:03:00.2]} 4... dxc4 {[%clk 0:03:00.5]} 5. Nf3 {[%clk 0:03:00.6]}
5... Nc6 {[%clk 0:03:00.5]} 6. O-O {[%clk 0:03:00.3]} 6... a6 {[%clk 0:03:00.8]}
7. e3 {[%clk 0:02:58.4]} 7... Rb8 {[%clk 0:03:01]} 8. Qe2 {[%clk 0:02:57]} 8...
b5 {[%clk 0:03:00.2]} 9. Rd1 {[%clk 0:02:56.9]} 9... Be7 {[%clk 0:03:00]} 10. e4
{[%clk 0:02:56.8]} 10... O-O {[%clk 0:02:59.6]} 11. a3 {[%clk 0:02:52.6]} 11...
Bb7 {[%clk 0:02:58.5]} 12. Nc3 {[%clk 0:02:52.3]} 12... Qd7 {[%clk 0:02:54]} 13.
Ne5 {[%clk 0:02:49]} 13... Qe8 {[%clk 0:02:51.2]} 14. Nxc6 {[%clk 0:02:39.4]}
14... Bxc6 {[%clk 0:02:52.1]} 15. d5 {[%clk 0:02:34.5]} 15... exd5 {[%clk
0:02:51.1]} 16. exd5 {[%clk 0:02:35.4]} 16... Bb7 {[%clk 0:02:50.9]} 17. Bf4
{[%clk 0:02:34]} 17... Bd6 {[%clk 0:02:50.4]} 18. Qd2 {[%clk 0:02:34]} 18... Qd7
{[%clk 0:02:47.7]} 19. Ne4 {[%clk 0:02:27.2]} 19... Nxe4 {[%clk 0:02:45.8]} 20.
Bxe4 {[%clk 0:02:25.1]} 20... f5 {[%clk 0:02:46.7]} 21. Bg2 {[%clk 0:02:21.1]}
21... Rbe8 {[%clk 0:02:45.2]} 22. a4 {[%clk 0:02:07.3]} 22... Bxf4 {[%clk
0:02:35.6]} 23. Qxf4 {[%clk 0:02:05.8]} 23... Re2 {[%clk 0:02:35.3]} 24. axb5
{[%clk 0:02:01.3]} 24... axb5 {[%clk 0:02:31.5]} 25. Ra7 {[%clk 0:01:54.7]}
25... Rb8 {[%clk 0:01:45.8]} 26. Qd4 {[%clk 0:01:53]} 26... f4 {[%clk
0:01:36.6]} 27. Bf3 {[%clk 0:01:39.8]} 27... Ree8 {[%clk 0:01:31.6]} 28. Qxf4
{[%clk 0:01:35.1]} 28... Rf8 {[%clk 0:01:30.8]} 29. Qe3 {[%clk 0:01:28.1]} 29...
Rbe8 {[%clk 0:00:32.9]} 30. Qc3 {[%clk 0:01:26.6]} 30... Ba8 {[%clk 0:00:31.3]}
31. Bg2 {[%clk 0:01:06.9]} 31... Qf5 {[%clk 0:00:28.6]} 32. Qd4 {[%clk
0:00:53.1]} 32... Re2 {[%clk 0:00:27.8]} 33. Rxc7 {[%clk 0:00:45.8]} 33... Rxf2
{[%clk 0:00:26.6]} 34. Qxg7# {[%clk 0:00:44.9]} 1-0

[Event "*** Titled Tuesday Blitz"]
[Site "Chess.com"]
[Date "2020.05.26"]
[Round "9"]
[White "vinniethepooh"]
[Black "GMaka"]
[Result "1-0"]
[WhiteElo "2562"]
[BlackElo "2394"]
[TimeControl "180+1"]
[EndTime "11:51:09 PDT"]
[Termination "vinniethepooh won by resignation"]

1. d4 {[%clk 0:03:00.9]} 1... d5 {[%clk 0:02:59]} 2. c4 {[%clk 0:03:01.2]} 2...
c6 {[%clk 0:02:59]} 3. Nc3 {[%clk 0:03:01.7]} 3... Nf6 {[%clk 0:02:59.4]} 4.
cxd5 {[%clk 0:03:02.3]} 4... cxd5 {[%clk 0:02:59.4]} 5. f3 {[%clk 0:03:02.9]}
5... g6 {[%clk 0:02:58.7]} 6. e4 {[%clk 0:03:03.2]} 6... dxe4 {[%clk 0:02:57.9]}
7. fxe4 {[%clk 0:03:04.1]} 7... Bg7 {[%clk 0:02:58.4]} 8. Nf3 {[%clk 0:03:03.9]}
8... O-O {[%clk 0:02:58.6]} 9. Be2 {[%clk 0:03:03.6]} 9... Nc6 {[%clk
0:02:50.4]} 10. O-O {[%clk 0:03:03.2]} 10... Bg4 {[%clk 0:02:50.4]} 11. Be3
{[%clk 0:03:01.9]} 11... Bxf3 {[%clk 0:02:41.3]} 12. Bxf3 {[%clk 0:03:02.8]}
12... e5 {[%clk 0:02:42]} 13. d5 {[%clk 0:03:00.6]} 13... Nd4 {[%clk 0:02:42.2]}
14. Bxd4 {[%clk 0:02:58]} 14... exd4 {[%clk 0:02:43.1]} 15. Qxd4 {[%clk
0:02:58.9]} 15... Ng4 {[%clk 0:02:43.2]} 16. Qc5 {[%clk 0:01:45.6]} 16... Rc8
{[%clk 0:02:13.8]} 17. Qxa7 {[%clk 0:01:40.1]} 17... Rc4 {[%clk 0:02:13.6]} 18.
Rad1 {[%clk 0:01:35.9]} 18... Nxh2 {[%clk 0:01:05.2]} 19. Kxh2 {[%clk
0:01:29.3]} 19... Qh4+ {[%clk 0:01:03.4]} 20. Kg1 {[%clk 0:01:29.4]} 20... Be5
{[%clk 0:01:03.1]} 21. Rf2 {[%clk 0:01:19.5]} 21... Bg3 {[%clk 0:00:45.1]} 22.
Qe3 {[%clk 0:01:09.4]} 22... f5 {[%clk 0:00:31.5]} 23. exf5 {[%clk 0:00:59.2]}
23... Rxf5 {[%clk 0:00:28.5]} 24. Ne2 {[%clk 0:00:54.5]} 24... Qh2+ {[%clk
0:00:19]} 25. Kf1 {[%clk 0:00:54.3]} 25... Bxf2 {[%clk 0:00:14.5]} 26. Kxf2
{[%clk 0:00:50.8]} 26... Qh4+ {[%clk 0:00:13.8]} 27. Kg1 {[%clk 0:00:48.1]}
27... Rc8 {[%clk 0:00:09.2]} 28. Qe6+ {[%clk 0:00:45.1]} 1-0

[Event "*** Titled Tuesday Blitz"]
[Site "Chess.com"]
[Date "2020.05.26"]
[Round "9"]
[White "Paralinch"]
[Black "Quaternitychess"]
[Result "0-1"]
[WhiteElo "2868"]
[BlackElo "2820"]
[TimeControl "180+1"]
[EndTime "11:51:11 PDT"]
[Termination "Quaternitychess won by resignation"]

1. e4 {[%clk 0:03:00.9]} 1... c5 {[%clk 0:02:59.8]} 2. Nf3 {[%clk 0:03:01.1]}
2... e6 {[%clk 0:02:58.7]} 3. d4 {[%clk 0:03:01]} 3... cxd4 {[%clk 0:02:58.9]}
4. Nxd4 {[%clk 0:03:01.9]} 4... Nc6 {[%clk 0:02:59.3]} 5. Nc3 {[%clk 0:03:01.9]}
5... Qc7 {[%clk 0:02:59.9]} 6. Be2 {[%clk 0:03:02]} 6... a6 {[%clk 0:02:59.9]}
7. O-O {[%clk 0:03:02]} 7... Bc5 {[%clk 0:03:00.2]} 8. Be3 {[%clk 0:02:50.6]}
8... d6 {[%clk 0:02:59.9]} 9. Qd2 {[%clk 0:02:46.2]} 9... Nf6 {[%clk 0:02:59.2]}
10. Nxc6 {[%clk 0:02:39.8]} 10... Bxe3 {[%clk 0:02:54.2]} 11. Qxe3 {[%clk
0:02:40.7]} 11... bxc6 {[%clk 0:02:46.8]} 12. Rad1 {[%clk 0:02:26.8]} 12... O-O
{[%clk 0:02:46.7]} 13. Qg3 {[%clk 0:02:26.8]} 13... e5 {[%clk 0:02:42.9]} 14. f4
{[%clk 0:02:25.4]} 14... Qe7 {[%clk 0:02:28.9]} 15. h3 {[%clk 0:02:06.6]} 15...
Rb8 {[%clk 0:02:00.1]} 16. b3 {[%clk 0:02:06.2]} 16... Rb4 {[%clk 0:02:00.7]}
17. a3 {[%clk 0:02:04.5]} 17... Rd4 {[%clk 0:01:59.9]} 18. Bd3 {[%clk 0:02:01]}
18... Nh5 {[%clk 0:01:30.7]} 19. Qe3 {[%clk 0:01:57]} 19... Nxf4 {[%clk
0:01:30.6]} 20. Rxf4 {[%clk 0:01:55.2]} 20... Rxd3 {[%clk 0:01:31.2]} 21. cxd3
{[%clk 0:01:40.5]} 21... exf4 {[%clk 0:01:31.3]} 22. Qxf4 {[%clk 0:01:41.4]}
22... a5 {[%clk 0:01:27.3]} 23. d4 {[%clk 0:01:31.8]} 23... h6 {[%clk
0:01:26.5]} 24. Kh2 {[%clk 0:01:29.6]} 24... Re8 {[%clk 0:01:07.8]} 25. Rd3
{[%clk 0:01:26.6]} 25... Be6 {[%clk 0:01:05.9]} 26. Rg3 {[%clk 0:01:22.9]} 26...
g5 {[%clk 0:01:00.8]} 27. h4 {[%clk 0:01:09.9]} 27... f6 {[%clk 0:01:00.7]} 28.
e5 {[%clk 0:01:05.7]} 28... fxe5 {[%clk 0:00:48.7]} 29. dxe5 {[%clk 0:01:06.6]}
29... Rf8 {[%clk 0:00:48.7]} 30. Qe3 {[%clk 0:00:56.6]} 30... d5 {[%clk
0:00:40.9]} 31. hxg5 {[%clk 0:00:54]} 31... h5 {[%clk 0:00:41.4]} 32. Rf3 {[%clk
0:00:49.4]} 32... Rxf3 {[%clk 0:00:36.5]} 33. gxf3 {[%clk 0:00:49.4]} 33... Qxa3
{[%clk 0:00:36.8]} 34. Ne2 {[%clk 0:00:49.9]} 34... c5 {[%clk 0:00:31.2]} 35.
Nf4 {[%clk 0:00:48.2]} 35... Qb2+ {[%clk 0:00:29.2]} 36. Kg3 {[%clk 0:00:47.2]}
36... h4+ {[%clk 0:00:28.8]} 0-1

[Event "*** Titled Tuesday Blitz"]
[Site "Chess.com"]
[Date "2020.05.26"]
[Round "9"]
[White "mrkvoz"]
[Black "theblitzchamp"]
[Result "1-0"]
[WhiteElo "2829"]
[BlackElo "2686"]
[TimeControl "180+1"]
[EndTime "11:51:12 PDT"]
[Termination "mrkvoz won by resignation"]

1. e4 {[%clk 0:03:00.9]} 1... e5 {[%clk 0:02:59.5]} 2. Nf3 {[%clk 0:03:00.6]}
2... Nc6 {[%clk 0:02:57.8]} 3. d4 {[%clk 0:03:01.2]} 3... exd4 {[%clk
0:02:57.4]} 4. Nxd4 {[%clk 0:03:02.1]} 4... Nf6 {[%clk 0:02:57.7]} 5. Nxc6
{[%clk 0:03:02.3]} 5... bxc6 {[%clk 0:02:58.6]} 6. Bd3 {[%clk 0:03:02.7]} 6...
Bc5 {[%clk 0:02:58]} 7. e5 {[%clk 0:03:02.3]} 7... Nd5 {[%clk 0:02:56.8]} 8. Qg4
{[%clk 0:03:02.3]} 8... g6 {[%clk 0:02:46.8]} 9. Bh6 {[%clk 0:03:01.5]} 9... d6
{[%clk 0:02:37.7]} 10. Qg3 {[%clk 0:03:01.1]} 10... Qe7 {[%clk 0:02:22]} 11. O-O
{[%clk 0:03:00.3]} 11... Be6 {[%clk 0:02:09.6]} 12. Nc3 {[%clk 0:02:57.1]} 12...
Nxc3 {[%clk 0:01:52.5]} 13. bxc3 {[%clk 0:02:58]} 13... f5 {[%clk 0:01:52.6]}
14. exf6 {[%clk 0:02:32]} 14... Qxf6 {[%clk 0:01:51]} 15. Rae1 {[%clk
0:02:29.2]} 15... Kd7 {[%clk 0:01:47.1]} 16. Bg5 {[%clk 0:01:46]} 16... Qf7
{[%clk 0:01:41.5]} 17. a4 {[%clk 0:01:45.1]} 17... Rae8 {[%clk 0:01:27.7]} 18.
a5 {[%clk 0:01:42.5]} 18... d5 {[%clk 0:01:14.4]} 19. Bf4 {[%clk 0:01:36.6]}
19... Bd6 {[%clk 0:00:36.7]} 20. Bxd6 {[%clk 0:01:36.4]} 20... cxd6 {[%clk
0:00:36.9]} 21. Rb1 {[%clk 0:01:36.2]} 21... Rb8 {[%clk 0:00:36.7]} 22. Rfe1
{[%clk 0:01:10.8]} 22... Bf5 {[%clk 0:00:31]} 23. Bxf5+ {[%clk 0:00:54.4]} 23...
Qxf5 {[%clk 0:00:29.9]} 24. Qe3 {[%clk 0:00:53.6]} 24... c5 {[%clk 0:00:27.2]}
25. Qe7+ {[%clk 0:00:52.7]} 25... Kc6 {[%clk 0:00:27]} 26. Qxa7 {[%clk
0:00:52.6]} 26... Qxc2 {[%clk 0:00:10.9]} 27. Rb6+ {[%clk 0:00:50.4]} 27... Rxb6
{[%clk 0:00:11]} 28. Qxb6+ {[%clk 0:00:49.6]} 28... Kd7 {[%clk 0:00:10.7]} 29.
Qb7+ {[%clk 0:00:49.8]} 29... Kd8 {[%clk 0:00:11.2]} 30. Qb8+ {[%clk 0:00:50]}
30... Kd7 {[%clk 0:00:11.7]} 31. Qxh8 {[%clk 0:00:49.7]} 31... Qxc3 {[%clk
0:00:12.3]} 32. Qxc3 {[%clk 0:00:49.5]} 1-0

[Event "*** Titled Tuesday Blitz"]
[Site "Chess.com"]
[Date "2020.05.26"]
[Round "9"]
[White "Klavdia_Nik"]
[Black "Charlottemillard17"]
[Result "1-0"]
[WhiteElo "2044"]
[BlackElo "1449"]
[TimeControl "180+1"]
[EndTime "11:51:12 PDT"]
[Termination "Klavdia_Nik won on time"]

1. Nf3 {[%clk 0:03:00.9]} 1... d5 {[%clk 0:02:57.5]} 2. c4 {[%clk 0:03:00]} 2...
dxc4 {[%clk 0:02:56]} 3. Na3 {[%clk 0:02:59.4]} 3... e6 {[%clk 0:02:54.2]} 4.
Nxc4 {[%clk 0:02:59.7]} 4... Nf6 {[%clk 0:02:53.6]} 5. b3 {[%clk 0:02:59.4]}
5... Nc6 {[%clk 0:02:52.3]} 6. Bb2 {[%clk 0:02:58.8]} 6... Bd7 {[%clk
0:02:51.2]} 7. g3 {[%clk 0:02:55.7]} 7... Bb4 {[%clk 0:02:50.7]} 8. Bg2 {[%clk
0:02:53.4]} 8... Qe7 {[%clk 0:02:39.4]} 9. O-O {[%clk 0:02:53.2]} 9... O-O
{[%clk 0:02:33.1]} 10. a3 {[%clk 0:02:53.1]} 10... Bd6 {[%clk 0:02:27.8]} 11. b4
{[%clk 0:02:44.7]} 11... b5 {[%clk 0:02:19.2]} 12. Nxd6 {[%clk 0:02:41.7]} 12...
cxd6 {[%clk 0:02:12.7]} 13. d4 {[%clk 0:02:27.8]} 13... d5 {[%clk 0:02:00.2]}
14. Rc1 {[%clk 0:02:21.5]} 14... Rac8 {[%clk 0:01:47.7]} 15. Rc5 {[%clk
0:02:12]} 15... a6 {[%clk 0:01:38.4]} 16. Ne5 {[%clk 0:01:52.8]} 16... Be8
{[%clk 0:01:17.8]} 17. Qc2 {[%clk 0:01:48.3]} 17... Qb7 {[%clk 0:01:08.9]} 18.
Rc1 {[%clk 0:01:38.3]} 18... Ne4 {[%clk 0:00:22.7]} 19. Bxe4 {[%clk 0:01:27.7]}
19... dxe4 {[%clk 0:00:20.9]} 20. Nxc6 {[%clk 0:01:28.3]} 20... Bxc6 {[%clk
0:00:19.8]} 21. Rxc6 {[%clk 0:01:28.5]} 21... Rxc6 {[%clk 0:00:19.6]} 22. Qxc6
{[%clk 0:01:28.9]} 22... Qxc6 {[%clk 0:00:18.6]} 23. Rxc6 {[%clk 0:01:29.1]}
23... Ra8 {[%clk 0:00:18.8]} 24. Bc3 {[%clk 0:01:09.3]} 24... Kf8 {[%clk
0:00:16.8]} 25. Kg2 {[%clk 0:01:08.9]} 25... Ke7 {[%clk 0:00:16.1]} 26. e3
{[%clk 0:01:07.6]} 26... Kd7 {[%clk 0:00:14.7]} 27. Rc5 {[%clk 0:01:07.8]} 27...
f6 {[%clk 0:00:09.9]} 28. g4 {[%clk 0:01:04.5]} 28... g6 {[%clk 0:00:03.7]} 29.
f3 {[%clk 0:01:02.2]} 29... f5 {[%clk 0:00:02.6]} 30. fxe4 {[%clk 0:01:01.8]}
1-0

[Event "*** Titled Tuesday Blitz"]
[Site "Chess.com"]
[Date "2020.05.26"]
[Round "9"]
[White "VladimirBugayev"]
[Black "seastar"]
[Result "1-0"]
[WhiteElo "2183"]
[BlackElo "1968"]
[TimeControl "180+1"]
[EndTime "11:51:13 PDT"]
[Termination "VladimirBugayev won on time"]

1. e4 {[%clk 0:03:00.9]} 1... d5 {[%clk 0:02:03.7]} 2. exd5 {[%clk 0:02:53.6]}
2... Qxd5 {[%clk 0:02:04]} 3. Nc3 {[%clk 0:02:53]} 3... Qd6 {[%clk 0:02:03.4]}
4. d4 {[%clk 0:02:43.9]} 4... Nf6 {[%clk 0:02:02.6]} 5. g3 {[%clk 0:02:43.7]}
5... a6 {[%clk 0:02:02.9]} 6. Bg2 {[%clk 0:02:43.5]} 6... Bg4 {[%clk 0:02:02.8]}
7. Nge2 {[%clk 0:02:41.9]} 7... Nc6 {[%clk 0:02:01.1]} 8. h3 {[%clk 0:02:41.6]}
8... Bh5 {[%clk 0:01:59.4]} 9. Bf4 {[%clk 0:02:40.6]} 9... Qb4 {[%clk 0:01:58]}
10. O-O {[%clk 0:02:39.9]} 10... O-O-O {[%clk 0:01:54.7]} 11. a3 {[%clk
0:02:38.6]} 11... Qxb2 {[%clk 0:01:34]} 12. Bxc6 {[%clk 0:02:31.7]} 12... Bxe2
{[%clk 0:01:28]} 13. Bxb7+ {[%clk 0:02:20.2]} 13... Qxb7 {[%clk 0:01:21.8]} 14.
Nxe2 {[%clk 0:02:19.6]} 14... e6 {[%clk 0:01:08.2]} 15. Qd3 {[%clk 0:02:10.3]}
15... Bd6 {[%clk 0:01:03.4]} 16. Be3 {[%clk 0:01:57.7]} 16... Nd5 {[%clk
0:00:59.1]} 17. c4 {[%clk 0:01:53.9]} 17... Nxe3 {[%clk 0:00:58.2]} 18. Qxe3
{[%clk 0:01:53.9]} 18... h6 {[%clk 0:00:47]} 19. Rab1 {[%clk 0:01:32.6]} 19...
Qc6 {[%clk 0:00:46]} 20. Qb3 {[%clk 0:01:20.6]} 20... Kd7 {[%clk 0:00:42]} 21.
d5 {[%clk 0:01:17.7]} 21... exd5 {[%clk 0:00:31.2]} 22. Nd4 {[%clk 0:01:01.6]}
22... Qxc4 {[%clk 0:00:24.6]} 23. Qd1 {[%clk 0:00:47.4]} 23... Ke7 {[%clk
0:00:16.2]} 24. Rc1 {[%clk 0:00:44.3]} 24... Qa2 {[%clk 0:00:11.5]} 25. Nc6+
{[%clk 0:00:41.6]} 25... Kf8 {[%clk 0:00:06.2]} 26. Nxd8 {[%clk 0:00:40.5]} 1-0

[Event "*** Titled Tuesday Blitz"]
[Site "Chess.com"]
[Date "2020.05.26"]
[Round "9"]
[White "PKCLUB"]
[Black "Aleksandar-Topalov"]
[Result "1-0"]
[WhiteElo "2615"]
[BlackElo "2393"]
[TimeControl "180+1"]
[EndTime "11:51:15 PDT"]
[Termination "PKCLUB won by checkmate"]

1. d4 {[%clk 0:02:59.3]} 1... Nf6 {[%clk 0:02:59.6]} 2. Nf3 {[%clk 0:02:59.8]}
2... g6 {[%clk 0:02:59.3]} 3. Bf4 {[%clk 0:02:58.4]} 3... Bg7 {[%clk 0:02:58.5]}
4. e3 {[%clk 0:02:58.6]} 4... d6 {[%clk 0:02:58.8]} 5. Nbd2 {[%clk 0:02:58.2]}
5... O-O {[%clk 0:02:56]} 6. h3 {[%clk 0:02:58.1]} 6... c5 {[%clk 0:02:55.3]} 7.
c3 {[%clk 0:02:57.2]} 7... Nc6 {[%clk 0:02:55.3]} 8. Bh2 {[%clk 0:02:56.4]} 8...
Bf5 {[%clk 0:02:47.4]} 9. Be2 {[%clk 0:02:53.1]} 9... Ne4 {[%clk 0:02:47.3]} 10.
O-O {[%clk 0:02:51.9]} 10... Nxd2 {[%clk 0:02:45.9]} 11. Qxd2 {[%clk 0:02:51.2]}
11... cxd4 {[%clk 0:02:44.1]} 12. exd4 {[%clk 0:02:49.5]} 12... a6 {[%clk
0:02:37.9]} 13. d5 {[%clk 0:02:46.9]} 13... Nb8 {[%clk 0:02:28]} 14. Nd4 {[%clk
0:02:45.5]} 14... Bd7 {[%clk 0:02:25.2]} 15. a4 {[%clk 0:02:43.2]} 15... a5
{[%clk 0:02:22.6]} 16. Rfe1 {[%clk 0:02:41.3]} 16... Na6 {[%clk 0:02:21.3]} 17.
Bb5 {[%clk 0:02:27.9]} 17... Nc5 {[%clk 0:02:20.6]} 18. Rad1 {[%clk 0:02:27]}
18... Bxb5 {[%clk 0:02:17.5]} 19. axb5 {[%clk 0:02:25.2]} 19... a4 {[%clk
0:02:15.6]} 20. Qe3 {[%clk 0:02:12.9]} 20... Re8 {[%clk 0:02:14.1]} 21. Nc2
{[%clk 0:02:10.4]} 21... Qb6 {[%clk 0:01:59]} 22. Na3 {[%clk 0:02:08.5]} 22...
Nd7 {[%clk 0:01:54.2]} 23. Qd2 {[%clk 0:02:01.2]} 23... Rac8 {[%clk 0:01:48.9]}
24. Bf4 {[%clk 0:02:00.6]} 24... Nf6 {[%clk 0:01:35.4]} 25. Be3 {[%clk
0:01:59.2]} 25... Qc7 {[%clk 0:01:32.3]} 26. Bd4 {[%clk 0:01:56.8]} 26... Nd7
{[%clk 0:01:25.2]} 27. Bxg7 {[%clk 0:01:43.7]} 27... Kxg7 {[%clk 0:01:25.2]} 28.
Re3 {[%clk 0:01:42.5]} 28... Kg8 {[%clk 0:01:23.3]} 29. Rde1 {[%clk 0:01:42.3]}
29... Nb6 {[%clk 0:01:16.8]} 30. Qd4 {[%clk 0:01:30.7]} 30... Rcd8 {[%clk
0:00:58.8]} 31. h4 {[%clk 0:01:28.7]} 31... f6 {[%clk 0:00:50.3]} 32. h5 {[%clk
0:01:27]} 32... Kf7 {[%clk 0:00:45.7]} 33. Qg4 {[%clk 0:01:19.6]} 33... Qc8
{[%clk 0:00:37.4]} 34. hxg6+ {[%clk 0:01:09.3]} 34... hxg6 {[%clk 0:00:36.9]}
35. Qh4 {[%clk 0:01:06.8]} 35... Nxd5 {[%clk 0:00:20.2]} 36. Qh7+ {[%clk
0:01:05.4]} 36... Kf8 {[%clk 0:00:20.5]} 37. Rh3 {[%clk 0:00:55.3]} 37... f5
{[%clk 0:00:16.7]} 38. Qh8+ {[%clk 0:00:53.9]} 38... Kf7 {[%clk 0:00:16.4]} 39.
Rh7# {[%clk 0:00:53.7]} 1-0